Workbook

Sheet Data
A1: Data | B1: Jan | C1: Feb | D1: Mar | E1: Apr
A2: North | B2: 57.431 | C2: 189.138 | D2: 67.831 | E2: =B2-3 -> 54.431
A3: South | B3: 18.597 | C3: 61.082 | D3: 290.898 | E3: =B3-3 -> 15.597
A4: East | B4: 54.285 | C4: 122.067 | D4: 60.942 | E4: 51.285
A5: West | B5: 33 | C5: 55 | D5: 22 | E5: 30
A6: North | B6: 63.1741 | C6: 123 | D6: 74.6141 | E6: 60.1741
A7: South | B7: 20.4567 | C7: 67.1902 | D7: 188 | E7: 17.4567
A8: East | B8: 59.7135 | C8: 134.2737 | D8: 67.0362 | E8: 56.7135
A9: West | B9: 36.3 | C9: 60.5 | D9: 24.2 | E9: 33.3
A10: North | B10: 54.55945 | C10: 100 | D10: 64.43945 | E10: 51.55945
A11: South | B11: 17.66715 | C11: 58.0279 | D11: 200 | E11: 14.66715
A12: East | B12: 51.57075 | C12: 115.96365 | D12: 57.8949 | E12: 48.57075
A13: West | B13: 31.35 | C13: 52.25 | D13: 20.9 | E13: 28.35
A14: North | B14: 60.55945 | C14: 185.6811 | D14: 70.43945 | E14: 57.55945
A15: South | B15: 23.66715 | C15: 64.0279 | D15: 129 | E15: 20.66715
A16: East | B16: 57.57075 | C16: 121.96365 | D16: 63.8949 | E16: 54.57075
A17: West | B17: 37.35 | C17: 58.25 | D17: 26.9 | E17: 34.35

Sheet Piv
A3: Row Labels
A4: East

Sheet Summary
B14: Data | C14: Jan | D14: Feb | E14: Mar | F14: Apr
B15: North | C15: =SUMIF(Data!$A$2:$A$17,$B15,Data!B$2:B$17) -> 235.724 | D15: =SUMIF(Data!$A$2:$A$17,$B15,Data!C$2:C$17) -> 597.8191 | E15: =SUMIF(Data!$A$2:$A$17,$B15,Data!D$2:D$17) -> 277.324 | F15: =SUMIF(Data!$A$2:$A$17,$B15,Data!E$2:E$17) -> 223.724
B16: South | C16: =SUMIF(Data!$A$2:$A$17,$B16,Data!B$2:B$17) -> 80.388 | D16: =SUMIF(Data!$A$2:$A$17,$B16,Data!C$2:C$17) -> 250.328 | E16: =SUMIF(Data!$A$2:$A$17,$B16,Data!D$2:D$17) -> 807.898 | F16: =SUMIF(Data!$A$2:$A$17,$B16,Data!E$2:E$17) -> 68.388
B17: East | C17: =SUMIF(Data!$A$2:$A$17,$B17,Data!B$2:B$17) -> 223.14 | D17: =SUMIF(Data!$A$2:$A$17,$B17,Data!C$2:C$17) -> 494.268 | E17: =SUMIF(Data!$A$2:$A$17,$B17,Data!D$2:D$17) -> 249.768 | F17: =SUMIF(Data!$A$2:$A$17,$B17,Data!E$2:E$17) -> 211.14
B18: West | C18: =SUMIF(Data!$A$2:$A$17,$B18,Data!B$2:B$17) -> 138 | D18: =SUMIF(Data!$A$2:$A$17,$B18,Data!C$2:C$17) -> 226 | E18: =SUMIF(Data!$A$2:$A$17,$B18,Data!D$2:D$17) -> 94 | F18: =SUMIF(Data!$A$2:$A$17,$B18,Data!E$2:E$17) -> 126
B19: All | C19: =SUM(C15:C18) -> 677.252 | D19: =SUM(D15:D18) -> 1568.4151 | E19: 1428.99 | F19: 629.252
B23: =Piv!A4 -> East | C23: =SUMIF($B$15:$B$19,Piv!$A$4,C$15:C$19) -> 223.14 | D23: =SUMIF($B$15:$B$19,Piv!$A$4,D$15:D$19) -> 494.268 | E23: =SUMIF($B$15:$B$19,Piv!$A$4,E$15:E$19) -> 249.768 | F23: =SUMIF($B$15:$B$19,Piv!$A$4,F$15:F$19) -> 211.14
